fUST/lending_fUST_20240721
["ID","MTS","AMOUNT","RATE_DAILY","PERIOD"]
[332789530,1721524245172,-3665.51,0.00013698,2]
[332789531,1721524245182,-500.0,0.00013698,2]
[332789532,1721524245191,-500.0,0.00013698,2]
[332789533,1721524245201,-691.21,0.00013698,2]
[332789534,1721524245210,-1077.34,0.00013698,2]
[332789535,1721524245219,-500.0,0.00013698,2]
[332789536,1721524245228,-500.0,0.00013698,2]
[332789537,1721524245238,-949.43,0.00013698,2]
[332789538,1721524245247,-500.0,0.00013698,2]
[332789539,1721524245256,-3040.26,0.00013698,2]
[332789540,1721524245265,-500.0,0.00013698,2]
[332789541,1721524245274,-456.45110293,0.00013698,2]
[332789542,1721524245284,-1815.08,0.00013698,2]
[332789543,1721524245295,-500.0,0.00013698,2]
[332789544,1721524245305,-1035.17,0.00013698,2]
[332789545,1721524245314,-500.0,0.00013698,2]
[332789546,1721524245324,-543.48,0.00013698,2]
[332789547,1721524245333,-507.41895197,0.00013698,2]
[332789548,1721524245342,-500.0,0.00013698,2]
[332789549,1721524245352,-184.7031653,0.00013698,2]
[332789550,1721524245361,-503.48851002,0.00013698,2]
[332789551,1721524245371,-4697.95,0.00013698,2]
[332789552,1721524245380,-1260.72,0.00013698,2]
[332789553,1721524245390,-500.0,0.00013698,2]
[332789554,1721524245400,-500.0,0.00013698,2]
[332789555,1721524245410,-545.19,0.00013698,2]
[332789556,1721524245421,-1368.69,0.00013698,2]
[332789557,1721524245432,-500.0,0.00013698,2]
[332789558,1721524245442,-512.82149887,0.00013698,2]
[332789559,1721524245451,-500.0,0.00013698,2]
[332789560,1721524245463,-500.0,0.00013698,2]
[332789561,1721524245474,-500.0,0.00013698,2]
[332789562,1721524245485,-500.0,0.00013698,2]
[332789563,1721524245496,-3323.93,0.00013698,2]
[332789564,1721524245506,-500.0,0.00013698,2]
[332789565,1721524245518,-500.0,0.00013698,2]
[332789566,1721524245529,-2467.16,0.00013698,2]
[332789567,1721524245539,-5050.51,0.00013698,2]
[332789568,1721524245550,-500.0,0.00013698,2]
[332789569,1721524245561,-500.0,0.00013698,2]
[332789570,1721524245572,-500.0,0.00013698,2]
[332789571,1721524245583,-1989.94,0.00013698,2]
[332789572,1721524245592,-500.0,0.00013698,2]
[332789573,1721524245602,-1997.73,0.00013698,2]
[332789574,1721524245612,-500.0,0.00013698,2]
[332789575,1721524245623,-500.0,0.00013698,2]
[332789576,1721524245634,-11347.86,0.00013698,2]
[332789577,1721524245644,-500.0,0.00013698,2]
[332789578,1721524245655,-500.0,0.00013698,2]
[332789579,1721524245666,-500.0,0.00013698,2]
[332789580,1721524245676,-581.5,0.00013698,2]
[332789581,1721524245686,-500.0,0.00013698,2]
[332789582,1721524245696,-500.0,0.00013698,2]
[332789583,1721524245705,-500.0,0.00013698,2]
[332789584,1721524245717,-500.0,0.00013698,2]
[332789585,1721524245728,-501.47697445,0.00013698,2]
[332789586,1721524245737,-807.37,0.00013698,2]
[332789587,1721524245746,-1114.13,0.00013698,2]
[332789588,1721524245755,-500.0,0.00013698,2]
[332789589,1721524245765,-2598.17,0.00013698,2]
[332789590,1721524245775,-3030.35,0.00013698,2]
[332789591,1721524245786,-500.0,0.00013698,2]
[332789593,1721524245797,-500.0,0.00013698,2]
[332789594,1721524245810,-500.0,0.00013698,2]
[332789595,1721524245820,-500.0,0.00013698,2]
[332789596,1721524245832,-823.74,0.00013698,2]
[332789597,1721524245843,-500.0,0.00013698,2]
[332789598,1721524245853,-521.76625834,0.00013698,2]
[332789599,1721524245864,-477.10124464,0.00013698,2]
[332789600,1721524245873,-500.0,0.00013698,2]
[332789601,1721524245883,-512.07655604,0.00013698,2]
[332789602,1721524245893,-500.0,0.00013698,2]
[332789603,1721524245904,-1096.14,0.00013698,2]
[332789605,1721524245913,-500.0,0.00013698,2]
[332789607,1721524245925,-500.0,0.00013698,2]
[332789609,1721524245934,-500.0,0.00013698,2]
[332789610,1721524245944,-870.08,0.00013698,2]
[332789612,1721524245954,-500.0,0.00013698,2]
[332789613,1721524245963,-500.0,0.00013698,2]
[332789614,1721524245972,-500.0,0.00013698,2]
[332789615,1721524245982,-500.0,0.00013698,2]
[332789616,1721524245992,-500.0,0.00013698,2]
[332789617,1721524246001,-500.0,0.00013698,2]
[332789618,1721524246011,-898.05,0.00013698,2]
[332789619,1721524246020,-1045.11,0.00013698,2]
[332789620,1721524246029,-500.0,0.00013698,2]
[332789622,1721524246039,-509.82043443,0.00013698,2]
[332789623,1721524246049,-500.0,0.00013698,2]
[332789624,1721524246058,-719.86,0.00013698,2]
[332789625,1721524246067,-1007.27,0.00013698,2]
[332789626,1721524246077,-530.47,0.00013698,2]
[332789627,1721524246086,-500.0,0.00013698,2]
[332789628,1721524246095,-500.0,0.00013698,2]
[332789629,1721524246106,-500.0,0.00013698,2]
[332789630,1721524246116,-2112.89,0.00013698,2]
[332789631,1721524246126,-500.0,0.00013698,2]
[332789632,1721524246138,-4087.15,0.00013698,2]
[332789633,1721524246149,-4087.15,0.00013698,2]
[332789634,1721524246159,-4087.15,0.00013698,2]
[332789635,1721524246169,-4087.15,0.00013698,2]
[332789636,1721524246181,-4087.15,0.00013698,2]
[332789637,1721524246192,-4087.15,0.00013698,2]
[332789638,1721524246202,-4087.15,0.00013698,2]
[332789639,1721524246211,-2692.83,0.00013698,2]
[332789640,1721524246222,-998.69,0.00013698,2]
[332789641,1721524246233,-4087.15,0.00013698,2]
[332789642,1721524246242,-4087.15,0.00013698,2]
[332789643,1721524246252,-2475.5,0.00013698,2]
[332789644,1721524246263,-4087.15,0.00013698,2]
[332789645,1721524246275,-2475.5,0.00013698,2]
[332789646,1721524246285,-4087.15,0.00013698,2]
[332789647,1721524246295,-925.61,0.00013698,2]
[332789648,1721524246305,-2475.5,0.00013698,2]
[332789649,1721524246316,-4087.15,0.00013698,2]
[332789650,1721524246326,-2475.5,0.00013698,2]
[332789651,1721524246336,-4087.15,0.00013698,2]
[332789652,1721524246347,-2475.5,0.00013698,2]
[332789653,1721524246357,-2475.5,0.00013698,2]
[332789654,1721524246369,-4087.15,0.00013698,2]
[332789655,1721524246378,-2475.5,0.00013698,2]
[332789656,1721524246388,-4087.15,0.00013698,2]
[332789657,1721524246401,-500.0,0.00013698,2]
[332789658,1721524246412,-4087.15,0.00013698,2]
[332789659,1721524246423,-2475.5,0.00013698,2]
[332789660,1721524246435,-2475.5,0.00013698,2]
[332789661,1721524246446,-2475.5,0.00013698,2]
[332789662,1721524246456,-4087.15,0.00013698,2]
[332789663,1721524246465,-4087.15,0.00013698,2]
[332789664,1721524246477,-1349.61,0.00013698,2]
[332789665,1721524246490,-2475.5,0.00013698,2]
[332789666,1721524246500,-4087.15,0.00013698,2]
[332789667,1721524246509,-4087.15,0.00013698,2]
[332789668,1721524246519,-2475.5,0.00013698,2]
[332789669,1721524246528,-4087.15,0.00013698,2]
[332789670,1721524246538,-2475.5,0.00013698,2]
[332789671,1721524246547,-4087.15,0.00013698,2]
[332789672,1721524246557,-2475.5,0.00013698,2]
[332789673,1721524246567,-4087.15,0.00013698,2]
[332789674,1721524246577,-4087.27,0.00013698,2]
[332789675,1721524246587,-500.0,0.00013698,2]
[332789676,1721524246596,-2475.5,0.00013698,2]
[332789677,1721524246607,-500.0,0.00013698,2]
[332789678,1721524246617,-2475.5,0.00013698,2]
[332789679,1721524246627,-500.0,0.00013698,2]
[332789680,1721524246636,-2475.5,0.00013698,2]
[332789681,1721524246646,-2595.83,0.00013698,2]
[332789682,1721524246655,-500.0,0.00013698,2]
[332789683,1721524246664,-500.0,0.00013698,2]
[332789684,1721524246674,-2475.5,0.00013698,2]
[332789685,1721524246683,-837.02,0.00013698,2]
[332789686,1721524246693,-500.0,0.00013698,2]
[332789687,1721524246702,-2475.5,0.00013698,2]
[332789688,1721524246711,-500.0,0.00013698,2]
[332789689,1721524246721,-2475.5,0.00013698,2]
[332789690,1721524246731,-500.0,0.00013698,2]
[332789691,1721524246740,-2475.5,0.00013698,2]
[332789692,1721524246749,-500.0,0.00013698,2]
[332789693,1721524246758,-2475.5,0.00013698,2]
[332789694,1721524246768,-500.0,0.00013698,2]
[332789695,1721524246778,-2475.5,0.00013698,2]
[332789696,1721524246787,-331.2748699,0.00013698,2]
[332789697,1721524246797,-2475.64911605,0.00013698,2]
[332789698,1721524246806,-1252.6,0.00013698,2]
[332789699,1721524246815,-500.0,0.00013698,2]
[332789700,1721524246824,-616.97,0.00013698,2]
[332789701,1721524246836,-2268.15,0.00013698,2]
[332789702,1721524246845,-500.0,0.00013698,2]
[332789703,1721524246857,-500.0,0.00013698,2]
[332789704,1721524246867,-500.0,0.00013698,2]
[332789705,1721524246876,-1135.59,0.00013698,2]
[332789706,1721524246885,-500.4941119,0.00013698,2]
[332789707,1721524246895,-500.0,0.00013698,2]
[332789708,1721524246905,-500.0,0.00013698,2]
[332789709,1721524246914,-12643.75,0.00013698,2]
[332789710,1721524246923,-893.85,0.00013698,2]
[332789711,1721524246933,-502.57318082,0.00013698,2]
[332789712,1721524246942,-500.0,0.00013698,2]
[332789713,1721524246952,-500.0,0.00013698,2]
[332789714,1721524246962,-500.0,0.00013698,2]
[332789715,1721524246972,-500.0,0.00013698,2]
[332789716,1721524246985,-500.0,0.00013698,2]
[332789717,1721524246996,-500.0,0.00013698,2]
[332789718,1721524247006,-615.12,0.00013698,2]
[332789719,1721524247015,-500.0,0.00013698,2]
[332789720,1721524247024,-1737.8,0.00013698,2]
[332789721,1721524247034,-500.0,0.00013698,2]
[332789722,1721524247043,-500.0,0.00013698,2]
[332789723,1721524247052,-500.0,0.00013698,2]
[332789724,1721524247064,-500.0,0.00013698,2]
[332789725,1721524247074,-245.72312322,0.00013698,2]
[332789726,1721524247084,-500.0,0.00013698,2]
[332789727,1721524247099,-500.0,0.00013698,2]
[332789728,1721524247108,-500.0,0.00013698,2]
[332789729,1721524247118,-500.0,0.00013698,2]
[332789730,1721524247128,-500.0,0.00013698,2]
[332789731,1721524247138,-500.0,0.00013698,2]
[332789732,1721524247148,-500.0,0.00013698,2]
[332789733,1721524247159,-500.0,0.00013698,2]
[332789734,1721524247169,-500.0,0.00013698,2]
[332789735,1721524247178,-500.0,0.00013698,2]
[332789736,1721524247189,-500.0,0.00013698,2]
[332789737,1721524247199,-500.0,0.00013698,2]
[332789738,1721524247209,-500.0,0.00013698,2]
[332789739,1721524247219,-500.0,0.00013698,2]
[332789740,1721524247229,-500.0,0.00013698,2]
[332789741,1721524247238,-500.0,0.00013698,2]
[332789742,1721524247248,-500.0,0.00013698,2]
[332789743,1721524247258,-500.0,0.00013698,2]
[332789744,1721524247268,-233.81394485,0.00013698,2]
[332789745,1721524247278,-500.0,0.00013698,2]
[332789746,1721524247288,-7923.5,0.00013698,2]
[332789747,1721524247297,-1592.31,0.00013698,2]
[332789748,1721524247306,-500.0,0.00013698,2]
[332789749,1721524247316,-500.0,0.00013698,2]
[332789750,1721524247326,-500.0,0.00013698,2]
[332789751,1721524247336,-500.0,0.00013698,2]
[332789752,1721524247346,-2251.81,0.00013698,2]
[332789753,1721524247356,-500.0,0.00013698,2]
[332789754,1721524247366,-500.0,0.00013698,2]
[332789755,1721524247376,-2572.77,0.00013698,2]
[332789756,1721524247386,-1181.42,0.00013698,2]
[332789757,1721524247396,-2457.2,0.00013698,2]
[332789758,1721524247405,-500.0,0.00013698,2]
[332789759,1721524247415,-3000.0,0.00013699,2]
[332789760,1721524247426,-923.986923,0.00013699,2]
[332789761,1721524247436,-923.986923,0.00013699,2]
[332789762,1721524247446,-923.986923,0.00013699,2]
[332789763,1721524247456,-923.986923,0.00013699,2]
[332789764,1721524247466,-188.142883,0.00013699,2]
[332789765,1721524247476,-188.142883,0.00013699,2]
[332789766,1721524247486,-188.142883,0.00013699,2]
[332789767,1721524247495,-188.142883,0.00013699,2]
[332789768,1721524247505,-245.021902,0.00013699,2]
[332789769,1721524247514,-245.021902,0.00013699,2]
[332789770,1721524247524,-245.021902,0.00013699,2]
[332789771,1721524247534,-116.8873962,0.00013699,2]
[332789772,1721524247869,-128.1345058,0.00013699,2]
[332789773,1721524247882,-1360.359047,0.00013699,2]
[332789774,1721524247894,-1432.912982,0.00013699,2]
[332789775,1721524247907,-1432.912982,0.00013699,2]
[332789776,1721524247920,-1432.912982,0.00013699,2]
[332789777,1721524247930,-1432.912982,0.00013699,2]
[332789778,1721524247940,-309.2855089,0.000138,2]
[332789779,1721524247951,-201.648279,0.00013832,2]
[332789780,1721524247962,-4641.90518758,0.0001389,2]
[332789781,1721524247973,-16397.67885982,0.000139,2]
[332789782,1721524247989,-651.71062115,0.000139,2]
[332789783,1721524248003,-442.12351832,0.000139,2]
[332789784,1721524249278,-818.13,0.000139,2]
[332789785,1721524249291,-691.20706109,0.000139,2]
[332789786,1721524249691,-2018.08,0.00013698,2]
[332789787,1721524249703,-3348.11996,0.000139,2]
[332789788,1721524286761,532.42648906,9.999e-05,2]
[332789819,1721524946708,273.37336231,9.9e-05,2]
[332789820,1721524954693,273.37336231,9.9e-05,2]
[332789822,1721524962926,273.37336231,9.9e-05,2]
[332789823,1721524971330,273.37336231,9.9e-05,2]
[332789825,1721525002840,273.37336231,9.9e-05,2]
[332789826,1721525012762,273.37336231,9.9e-05,2]
[332789831,1721525021435,273.37336231,9.9e-05,2]
[332789832,1721525031135,273.37336231,9.9e-05,2]
[332789833,1721525040360,273.37336231,9.9e-05,2]
[332789834,1721525048644,273.37336231,9.9e-05,2]
[332789835,1721525056596,273.37336231,9.9e-05,2]
[332789836,1721525064757,273.37336231,9.9e-05,2]
[332789837,1721525073442,273.37336231,9.9e-05,2]
[332789838,1721525081684,273.37336231,9.9e-05,2]
[332789839,1721525081964,155.63751278,9.999e-05,2]
[332789840,1721525089591,273.37336231,9.9e-05,2]
[332789841,1721525098382,273.37336231,9.9e-05,2]
[332789842,1721525106340,273.37336231,9.9e-05,2]
[332789843,1721525114776,273.37336231,9.9e-05,2]
[332789844,1721525116308,567.65464644,9.999e-05,2]
[332789845,1721525122882,273.37336231,9.9e-05,2]
[332789846,1721525131322,273.37336231,9.9e-05,2]
[332789847,1721525139279,273.37336231,9.9e-05,2]
[332789848,1721525148376,273.37336231,9.9e-05,2]
[332789851,1721525157338,273.37336231,9.9e-05,2]
[332789852,1721525162559,542.35957529,9.999e-05,2]
[332789853,1721525165621,273.37336231,9.9e-05,2]
[332789857,1721525174148,273.37336231,9.9e-05,2]
[332789858,1721525182362,273.37336231,9.9e-05,2]
[332789859,1721525190303,273.37336231,9.9e-05,2]
[332789860,1721525198445,273.37336231,9.9e-05,2]
[332789861,1721525206344,273.37336231,9.9e-05,2]
[332789862,1721525215282,273.37336231,9.9e-05,2]
[332789863,1721525223319,273.37336231,9.9e-05,2]
[332789864,1721525231495,273.37336231,9.9e-05,2]
[332789866,1721525232518,390.22601338,9.999e-05,2]
[332789869,1721525240183,273.37336231,9.9e-05,2]
[332789870,1721525248327,273.37336231,9.9e-05,2]
[332789872,1721525256918,273.37336231,9.9e-05,2]
[332789873,1721525260553,498.33045472,9.999e-05,2]
[332789876,1721525265204,273.37336231,9.9e-05,2]
[332789879,1721525278768,273.37336231,9.9e-05,2]
[332789880,1721525288475,273.37336231,9.9e-05,2]
[332789882,1721525297641,273.37336231,9.9e-05,2]
[332789883,1721525306939,273.37336231,9.9e-05,2]
[332789884,1721525314697,273.37336231,9.9e-05,2]
[332789885,1721525322910,273.37336231,9.9e-05,2]
[332789887,1721525331971,273.37336231,9.9e-05,2]
[332789888,1721525340128,273.37336231,9.9e-05,2]
[332789889,1721525347975,273.37336231,9.9e-05,2]
[332789890,1721525357383,273.37336231,9.9e-05,2]
[332789891,1721525365287,273.37336231,9.9e-05,2]
[332789896,1721525370262,155.54324563,9.999e-05,2]
[332789897,1721525373378,273.37336231,9.9e-05,2]
[332789899,1721525381279,273.37336231,9.9e-05,2]
[332789901,1721525390044,273.37336231,9.9e-05,2]
[332789902,1721525397867,273.37336231,9.9e-05,2]
[332789903,1721525406692,273.37336231,9.9e-05,2]
[332789904,1721525414557,273.37336231,9.9e-05,2]
[332789905,1721525417044,160.63,0.000224,31]
[332789907,1721525422782,273.37336231,9.9e-05,2]
[332789908,1721525430623,273.37336231,9.9e-05,2]
[332790016,1721525438543,-300.0,0.00011854,2]
[332790018,1721525438554,-300.0,0.00011854,2]
[332790019,1721525438566,-24900.0,0.00011855,2]
[332790020,1721525438577,-272.02129883,0.00012,2]
[332790021,1721525438588,-500.24552227,0.00012,2]
[332790022,1721525438598,-165.1922636,0.00012172,2]
[332790023,1721525438607,-546.02619539,0.00012592,2]
[332790024,1721525438620,-1555.57941301,0.00013398,2]
[332790025,1721525438631,-385.9910749,0.00013452,2]
[332790026,1721525438642,-153.5753363,0.00013452,2]
[332790027,1721525438652,-5303.4494987,0.00013472,2]
[332790028,1721525438662,-367.31035882,0.00013495,2]
[332790029,1721525438672,-153.0,0.000135,2]
[332790030,1721525438682,-1422.22901432,0.00013598,2]
[332790031,1721525438692,-602.37484029,0.00013598,2]
[332790032,1721525438707,-1422.22901428,0.00013648,2]
[332790033,1721525438717,-55215.9244293,0.00013688,2]
[332790034,1721525438726,-804.59,0.00013698,2]
[332790035,1721525438736,-685.06,0.00013698,2]
[332790036,1721525438745,-500.0,0.00013698,2]
[332790037,1721525438755,-500.0,0.00013698,2]
[332790038,1721525438765,-823.01,0.00013698,2]
[332790039,1721525438775,-500.0,0.00013698,2]
[332790040,1721525438784,-500.0,0.00013698,2]
[332790041,1721525438794,-500.0,0.00013698,2]
[332790042,1721525438804,-500.0,0.00013698,2]
[332790044,1721525438813,-693.64,0.00013698,2]
[332790045,1721525438823,-500.0,0.00013698,2]
[332790046,1721525438833,-500.0,0.00013698,2]
[332790047,1721525438843,-500.0,0.00013698,2]
[332790048,1721525438854,-918.81,0.00013698,2]
[332790049,1721525438864,-500.0,0.00013698,2]
[332790050,1721525438873,-500.0,0.00013698,2]
[332790051,1721525438883,-500.0,0.00013698,2]
[332790052,1721525438892,-500.0,0.00013698,2]
[332790053,1721525438901,-500.0,0.00013698,2]
[332790054,1721525438911,-601.54,0.00013698,2]
[332790055,1721525438920,-526.42,0.00013698,2]
[332790056,1721525438930,-500.0,0.00013698,2]
[332790057,1721525438940,-500.0,0.00013698,2]
[332790058,1721525438949,-867.51,0.00013698,2]
[332790059,1721525438960,-500.0,0.00013698,2]
[332790060,1721525438970,-500.0,0.00013698,2]
[332790061,1721525438980,-313.35768215,0.00013698,2]
[332790062,1721525438989,-500.0,0.00013698,2]
[332790063,1721525438999,-500.0,0.00013698,2]
[332790064,1721525439008,-500.0,0.00013698,2]
[332790065,1721525439017,-500.0,0.00013698,2]
[332790066,1721525439027,-500.0,0.00013698,2]
[332790067,1721525439038,-500.0,0.00013698,2]
[332790068,1721525439047,-501.9546659,0.00013698,2]
[332790069,1721525439056,-500.0,0.00013698,2]
[332790070,1721525439066,-500.0,0.00013698,2]
[332790071,1721525439075,-500.0,0.00013698,2]
[332790072,1721525439085,-500.0,0.00013698,2]
[332790073,1721525439094,-500.0,0.00013698,2]
[332790074,1721525439104,-500.0,0.00013698,2]
[332790075,1721525439113,-500.0,0.00013698,2]
[332790076,1721525439123,-500.0,0.00013698,2]
[332790077,1721525439132,-1039.49,0.00013698,2]
[332790078,1721525439142,-500.0,0.00013698,2]
[332790079,1721525439151,-500.0,0.00013698,2]
[332790080,1721525439160,-501.3438523,0.00013698,2]
[332790081,1721525439170,-500.0,0.00013698,2]
[332790082,1721525439179,-500.0,0.00013698,2]
[332790083,1721525439189,-500.0,0.00013698,2]
[332790084,1721525439199,-500.0,0.00013698,2]
[332790085,1721525439209,-500.0,0.00013698,2]
[332790086,1721525439218,-243.73701742,0.00013698,2]
[332790087,1721525439227,-500.0,0.00013698,2]
[332790088,1721525439237,-500.0,0.00013698,2]
[332790089,1721525439246,-500.0,0.00013698,2]
[332790090,1721525439255,-500.0,0.00013698,2]
[332790091,1721525439266,-500.0,0.00013698,2]
[332790092,1721525439276,-500.0,0.00013698,2]
[332790093,1721525439285,-500.0,0.00013698,2]
[332790094,1721525439296,-500.0,0.00013698,2]
[332790095,1721525439305,-500.0,0.00013698,2]
[332790096,1721525439315,-552.51580868,0.00013698,2]
[332790097,1721525439324,-419.0673167,0.00013698,2]
[332790098,1721525439333,-500.0,0.00013698,2]
[332790099,1721525439343,-500.0,0.00013698,2]
[332790100,1721525439352,-500.0,0.00013698,2]
[332790101,1721525439362,-500.0,0.00013698,2]
[332790102,1721525439372,-628.81,0.00013698,2]
[332790103,1721525439383,-500.0,0.00013698,2]
[332790104,1721525439392,-500.0,0.00013698,2]
[332790105,1721525439403,-646.05085239,0.00013698,2]
[332790106,1721525439412,-500.0,0.00013698,2]
[332790107,1721525439423,-502.61155734,0.00013698,2]
[332790108,1721525439434,-503.2814085,0.00013698,2]
[332790109,1721525439444,-500.0,0.00013698,2]
[332790110,1721525439455,-547.69,0.00013698,2]
[332790111,1721525439468,-500.0,0.00013698,2]
[332790112,1721525439479,-500.0,0.00013698,2]
[332790113,1721525439490,-500.0,0.00013698,2]
[332790114,1721525439502,-500.0,0.00013698,2]
[332790115,1721525439513,-150.0,0.00013698,2]
[332790116,1721525439523,-500.0,0.00013698,2]
[332790117,1721525439532,-500.0,0.00013698,2]
[332790118,1721525439542,-601.4404759,0.00013698,2]
[332790119,1721525439551,-500.0,0.00013698,2]
[332790120,1721525439561,-500.0,0.00013698,2]
[332790121,1721525439571,-500.0,0.00013698,2]
[332790122,1721525439580,-505.46201646,0.00013698,2]
[332790123,1721525439590,-739.2,0.00013698,2]
[332790124,1721525439601,-508.40747236,0.00013698,2]
[332790125,1721525439612,-505.79508747,0.00013698,2]
[332790126,1721525439623,-500.0,0.00013698,2]
[332790127,1721525439633,-535.13087164,0.00013698,2]
[332790128,1721525439644,-500.0,0.00013698,2]
[332790129,1721525439655,-500.0,0.00013698,2]
[332790130,1721525439664,-636.68,0.00013698,2]
[332790131,1721525439676,-500.0,0.00013698,2]
[332790132,1721525439686,-502.96509409,0.00013698,2]
[332790133,1721525439698,-500.0,0.00013698,2]
[332790134,1721525439710,-504.50131564,0.00013698,2]
[332790135,1721525439720,-500.0,0.00013698,2]
[332790136,1721525439729,-276.89937302,0.00013698,2]
[332790137,1721525439739,-500.0,0.00013698,2]
[332790138,1721525439749,-500.0,0.00013698,2]
[332790139,1721525439758,-500.0,0.00013698,2]
[332790140,1721525439768,-193.47418578,0.00013698,2]
[332790141,1721525439778,-500.0,0.00013698,2]
[332790142,1721525439788,-500.0,0.00013698,2]
[332790143,1721525439799,-500.0,0.00013698,2]
[332790144,1721525439809,-500.0,0.00013698,2]
[332790145,1721525439830,-500.0,0.00013698,2]
[332790146,1721525439842,-270.43895219,0.00013698,2]
[332790149,1721525440116,-191.2377236,0.00013698,2]
[332790150,1721525440131,-500.0,0.00013698,2]
[332790151,1721525440142,-500.0,0.00013698,2]
[332790152,1721525440152,-500.0,0.00013698,2]
[332790153,1721525440164,-500.0,0.00013698,2]
[332790154,1721525440174,-500.0,0.00013698,2]
[332790155,1721525440186,-500.0,0.00013698,2]
[332790156,1721525440196,-500.0,0.00013698,2]
[332790157,1721525440206,-500.0,0.00013698,2]
[332790158,1721525440216,-500.0,0.00013698,2]
[332790159,1721525440226,-500.0,0.00013698,2]
[332790160,1721525440235,-500.0,0.00013698,2]
[332790161,1721525440244,-484.1569262,0.00013698,2]
[332790162,1721525440254,-500.0,0.00013698,2]
[332790164,1721525440264,-500.0,0.00013698,2]
[332790166,1721525440274,-482.34424015,0.00013698,2]
[332790168,1721525440284,-500.0,0.00013698,2]
[332790170,1721525440294,-500.0,0.00013698,2]
[332790171,1721525440303,-500.0,0.00013698,2]
[332790172,1721525440312,-500.0,0.00013698,2]
[332790173,1721525440322,-500.0,0.00013698,2]
[332790174,1721525440331,-1393.42,0.00013698,2]
[332790175,1721525440340,-500.0,0.00013698,2]
[332790176,1721525440349,-500.0,0.00013698,2]
[332790177,1721525440359,-1773.02,0.00013698,2]
[332790178,1721525440368,-635.03105591,0.00013698,2]
[332790179,1721525440377,-541.08,0.00013698,2]
[332790180,1721525440387,-500.0,0.00013698,2]
[332790181,1721525440397,-435.63126053,0.00013698,2]
[332790182,1721525440406,-500.0,0.00013698,2]
[332790183,1721525440416,-628.81656615,0.00013698,2]
[332790184,1721525440425,-522.83,0.00013698,2]
[332790186,1721525440434,-500.0,0.00013698,2]
[332790187,1721525440443,-500.0,0.00013698,2]
[332790189,1721525440453,-500.0,0.00013698,2]
[332790191,1721525440462,-500.0,0.00013698,2]
[332790193,1721525440472,-256.28354357,0.00013698,2]
[332790195,1721525440482,-640.55,0.00013698,2]
[332790196,1721525440491,-500.0,0.00013698,2]
[332790197,1721525440501,-500.0,0.00013698,2]
[332790198,1721525440510,-170.43129503,0.00013698,2]
[332790199,1721525440519,-555.7,0.00013698,2]
[332790200,1721525440529,-500.0,0.00013698,2]
[332790201,1721525440538,-500.0,0.00013698,2]
[332790202,1721525440547,-500.0,0.00013698,2]
[332790203,1721525440557,-174.31015921,0.00013698,2]
[332790204,1721525440566,-500.0,0.00013698,2]
[332790205,1721525440576,-500.0,0.00013698,2]
[332790206,1721525440585,-500.0,0.00013698,2]
[332790207,1721525440594,-505.11920375,0.00013698,2]
[332790208,1721525440604,-1007.63,0.00013698,2]
[332790209,1721525440613,-500.0,0.00013698,2]
[332790210,1721525440622,-500.0,0.00013698,2]
[332790211,1721525440632,-500.0,0.00013698,2]
[332790212,1721525440641,-500.0,0.00013698,2]
[332790213,1721525440651,-500.0,0.00013698,2]